Cogmind - Beta 13 @@@ ROGUE MODE // 2024.04.27 @ 16:40:00 Player: Scringis Result: Destroyed by 54-N8I(R) with Subdweller Machine Gun Performance ------------- Evolutions (0) 0 Regions Visited (3) 600 Robots Destroyed (26) 130 Value Destroyed (693) 693 Prototype IDs (0) 0 Alien Tech Used (0) 0 Bonus (0) 0 TOTAL SCORE: 1423 Bonus ------- None Cogmind --------- Core Integrity 0/250 Matter 289/300 Energy 125/125 System Corruption 0% Temperature Cool (0) Movement Core (500) Ox9 Location -10/Subcaves Parts ------- > --- POWER (1) -------- Light Ion Engine > --- PROPULSION (2) --- (None) > --- UTILITY (2) ------ Large Storage Unit Structural Scanner > --- WEAPON (2) ------- Heavy Battle Rifle > --- INVENTORY (15) --- Makeshift Power Source Improved Treads Improved Treads Improved Heat Sink EM Shotgun Grenade Launcher Rocket Launcher Datajack Peak State ------------ > --- POWER ------------ Light Nuclear Core > --- PROPULSION ------- Light Treads Light Treads > --- UTILITY ---------- Large Storage Unit Structural Scanner > --- WEAPON ----------- Particle Gun Heavy Battle Rifle > --- INVENTORY -------- Light Ion Engine Improved Treads Improved Treads EM Shotgun Light Assault Rifle Grenade Launcher Rocket Launcher Datajack [Rating: 14] Favorites ----------- Power Light Nuclear Core Engine Light Ion Engine Power Core Light Nuclear Core Propulsion Light Treads Treads Light Treads Utility Large Storage Unit Device Structural Scanner Storage Large Storage Unit Weapon Particle Gun Energy Gun Particle Gun Ballistic Gun Light Assault Rifle Build | -11 -10 -10 -10 ------- Run | Yrd Mat Min Sub Slots Evolved . | . . . . Power . | . . . . Propulsion . | . . . . Utility . | . . . . Weapon . | . . . . Parts Attached 16 | 6 8 1 1 Power 4 | 1 2 . 1 Engine 3 | 1 1 . 1 Core 1 | . 1 . . Reactor . | . . . . Propulsion 4 | 2 2 . . Treads 4 | 2 2 . . Leg . | . . . . Wheel . | . . . . Hover . | . . . . Flight . | . . . . Utility 3 | 1 2 . . Device 1 | . 1 . . Storage 2 | 1 1 . . Processor . | . . . . Hackware . | . . . . Protection . | . . . . Artifact . | . . . . Weapon 5 | 2 2 1 . Energy Gun 3 | 1 2 . . Energy Cannon . | . . . . Ballistic Gun 2 | 1 . 1 . Ballistic Cannon . | . . . . Launcher . | . . . . Special Weapon . | . . . . Impact Weapon . | . . . . Slashing Weapon . | . . . . Piercing Weapon . | . . . . Special Melee Weapon . | . . . . Unidentified Prototypes . | . . . . Parts Lost 8 | . 4 . 4 Power 3 | . 2 . 1 Propulsion 2 | . . . 2 Utility . | . . . . Weapon 3 | . 2 . 1 Highest Loss Streak 3 | . 1 . 3 To Critical Strikes . | . . . . Average Slot Usage (%) 95 | . 89 100 97 Engine 4 | . 8 . 11 Core 8 | . 3 14 2 Treads 27 | . 28 28 27 Device 11 | . 6 14 14 Storage 14 | . 14 14 14 Energy Gun 13 | . 13 14 13 Ballistic Gun 14 | . 14 14 14 Naked Turns . | . . . . Heaviest Build 33 | 13 30 33 33 Greatest Support 40 | 40 40 40 40 Greatest Overweight (x) . | . . . . Average Overweight (x) . | . . . . Largest Inventory Capacity 15 | 8 15 15 15 Average Capacity 13 | 7 11 15 15 Most Carried 8 | 5 7 8 8 Average Carried 6 | 2 4 7 7 Final Capacity 15 | 8 15 15 15 Final Carried 8 | 2 5 8 8 Class Distribution -------------------- 100% | Mutant Dominant Class ---------------- Mutant | -10/Materials Mutant | -10/Mines Mutant | -10/Subcaves Resources | -11 -10 -10 -10 ----------- Run | Yrd Mat Min Sub Matter Collected 452 | 209 165 37 41 Remotely . | . . . . Salvage Created 857 | . 557 161 139 Parts 51 | . 31 10 10 Haulers Intercepted . | . . . . Recyclers Shooed . | . . . . Parts Field Recycled . | . . . . Retrieved Matter . | . . . . Parts Self-Destructed 6 | . . . 6 Prevented . | . . . . Kills | -11 -10 -10 -10 ------- Run | Yrd Mat Min Sub Combat Hostiles Destroyed 22 | . 12 5 5 Guns 22 | . 12 5 5 Classes Destroyed 5 | . 3 1 1 Worker 3 | . 1 2 . Builder 1 | . 1 . . Swarmer 5 | . . 3 2 Grunt 14 | . 12 2 . Subdweller 3 | . . . 3 Best Kill Streak 3 | . 3 3 2 Combat Bots Only 3 | . 3 3 2 Max Kills in Single Turn 1 | . 1 1 1 Gunslinging . | . . . . Exploded . | . . . . Melee . | . . . . Uniques/NPCs Destroyed . | . . . . Combat | -11 -10 -10 -10 -------- Run | Yrd Mat Min Sub Hostile Shots Fired 145 | . 75 22 48 Missed 41 | . 17 5 19 Damage Taken 1331 | . 694 173 464 Core 255 | . 167 48 40 Absorbed by Shields . | . . . . Core Remaining (%) 100 | 100 . . . Volleys Fired 95 | . 62 13 20 Largest 2 | . 2 2 2 Hottest 98 | . 70 98 98 Shots Fired 172 | . 113 26 33 Gun 172 | . 113 26 33 Cannon . | . . . . Launcher . | . . . . Special . | . . . . Kinetic 95 | . 62 13 20 Thermal 57 | . 31 13 13 Explosive . | . . . . Electromagnetic 20 | . 20 . . Robot Hit Streak 12 | . 9 6 12 Robot Miss Streak 5 | . 3 5 2 Penetration Max . | . . . . Secondary Targets 3 | . 1 1 1 Max Gunslinging Chain 1 | . 1 1 1 Shots Hit Robots 119 | . 79 13 27 Core Hits 52 | . 34 9 9 Critical Kills . | . . . . Critical Parts Destroyed . | . . . . Critical Strikes 3 | . 1 . 2 Burn 3 | . 1 . 2 Melee Attacks . | . . . . Impact . | . . . . Slashing . | . . . . Piercing . | . . . . Sneak Attacks . | . . . . Combat Hostiles . | . . . . Follow-up Attacks . | . . . . Damage Inflicted 1576 | 5 912 236 423 Guns 1542 | . 911 208 423 Cannons . | . . . . Explosions . | . . . . Melee . | . . . . Ramming 34 | 5 1 28 . Kinetic 716 | . 348 114 254 Thermal 548 | . 285 94 169 Explosive . | . . . . Electromagnetic 278 | . 278 . . Impact . | . . . . Slashing . | . . . . Piercing . | . . . . Highest Corruption . | . . . . Average Corruption . | . . . . Corruption Purged . | . . . . Corruption Blocked . | . . . . Overload Shots . | . . . . Overflow Damage . | . . . . Projectiles . | . . . . Explosions . | . . . . Melee . | . . . . Knockbacks 1 | . . 1 . Impact 1 | . . 1 . Kinetic . | . . . . Secondary . | . . . . Self-Inflicted Damage . | . . . . Shots . | . . . . Rammed 10 | 4 1 5 . Targets Rammed 10 | 4 1 5 . Kicked . | . . . . Crushed . | . . . . Highest Temperature 438 | . 271 438 2 Average Temperature 110 | . 81 184 2 Received Heat Transfer 543 | . 405 60 78 Effects 1 | . . 1 . Energy Bleed 1 | . . 1 . Siege Activations . | . . . . Robots Corrupted . | . . . . Combat Hostiles . | . . . . Parts Fried . | . . . . Impact Corruptions . | . . . . Robots Melted . | . . . . Combat Hostiles . | . . . . Parts Melted 2 | . 1 . 1 Heat Transferred 1702 | . 925 222 555 Parts Sabotaged . | . . . . Parts Stolen . | . . . . Parts Stripped . | . . . . Power Chain Reactions . | . . . . Alert | -11 -10 -10 -10 ------- Run | Yrd Mat Min Sub Peak Influence 185 | . 185 88 . Initial 13 | . . 13 . Average 42 | . 71 25 . Maximum Alert Level . | . . . . Low Security (%) 100 | 100 100 100 . Level 1 . | . . . . Level 2 . | . . . . Level 3 . | . . . . Level 4 . | . . . . Level 5 . | . . . . High Security . | . . . . Max Security . | . . . . Squads Dispatched 4 | . 4 . . Investigation 1 | . 1 . . Extermination . | . . . . Reinforcement 3 | . 3 . . Assault . | . . . . Garrison . | . . . . Intercept . | . . . . Searches Triggered . | . . . . Construction Impeded . | . . . . Haulers Reinforced . | . . . . Active Scanning Responses . | . . . . Cargo Convoy Interrupts . | . . . . Stealth | -11 -10 -10 -10 --------- Run | Yrd Mat Min Sub Distress Signals 3 | . 2 1 . Communications Jammed . | . . . . Distress Signals . | . . . . Times Spotted 43 | . 20 5 18 Peak Tracking Total 4 | . 4 3 4 Tactical Retreats 2 | . 1 . 1 Traps | -11 -10 -10 -10 ------- Run | Yrd Mat Min Sub Traps Triggered 1 | . 1 . . Indirectly . | . . . . Trap Hack Attempts . | . . . . Triggered . | . . . . Disarmed . | . . . . Reprogrammed . | . . . . Reused . | . . . . Traps Extracted . | . . . . Installed . | . . . . Triggered . | . . . . Machines | -11 -10 -10 -10 ---------- Run | Yrd Mat Min Sub Machines Disabled . | . . . . Max in Single Turn . | . . . . Machines Repaired . | . . . . Machines Dismantled . | . . . . Machines Sabotaged . | . . . . Overloaded Fab Kills . | . . . . Hacking | -11 -10 -10 -10 --------- Run | Yrd Mat Min Sub Machines Accessed . | . . . . Terminals . | . . . . Fabricators . | . . . . Repair Stations . | . . . . Recycling Units . | . . . . Scanalyzers . | . . . . Garrison Access . | . . . . Total Hacks . | . . . . Successful . | . . . . Failed . | . . . . Catastrophic . | . . . . Database Lockouts . | . . . . Manual . | . . . . Terminals . | . . . . Fabricators . | . . . . Repair Stations . | . . . . Recycling Units . | . . . . Scanalyzers . | . . . . Garrison Access . | . . . . Terminal Hacks . | . . . . Fabricator Hacks . | . . . . Repair Station Hacks . | . . . . Recycling Unit Hacks . | . . . . Scanalyzer . | . . . . Garrison Access Hacks . | . . . . Unauthorized Hacks . | . . . . Terminals . | . . . . Fabricators . | . . . . Repair Stations . | . . . . Recycling Units . | . . . . Scanalyzers . | . . . . Garrison Access . | . . . . Data Cores Recovered . | . . . . Used . | . . . . Hacking Detections . | . . . . Full Trace Events . | . . . . Feedback Events . | . . . . Feedback Blocked . | . . . . Robot Schematics Acquired . | . . . . Robots Built . | . . . . Authchips . | . . . . Time . | . . . . Total Robot Build Rating . | . . . . Part Schematics Acquired . | . . . . Parts Built . | . . . . Authchips . | . . . . Time . | . . . . Total Part Build Rating . | . . . . Parts Repaired . | . . . . Time . | . . . . Parts Recycled . | . . . . Recycled Matter . | . . . . Retrieved Matter . | . . . . Retrieved Components . | . . . . Parts Scanalyzed . | . . . . Part Schematics Acquired . | . . . . Parts Damaged . | . . . . Bothacking | -11 -10 -10 -10 ------------ Run | Yrd Mat Min Sub Used RIF Installer . | . . . . Robots Hacked . | . . . . Non-combat . | . . . . Combat . | . . . . Robot Hacks Applied . | . . . . Relay Couplers Released . | . . . . Fabnet Peak Effective % . | . . . . Robots Rewired . | . . . . Allies Hacked . | . . . . Hacks Repelled . | . . . . Allies | -11 -10 -10 -10 -------- Run | Yrd Mat Min Sub Total Allies . | . . . . Largest Group . | . . . . Highest-Rated Group . | . . . . Highest-Rated Ally . | . . . . Total Orders . | . . . . Ally Attacks . | . . . . Total Damage . | . . . . Kills . | . . . . Allies Corrupted . | . . . . Allies Melted . | . . . . Intel | -11 -10 -10 -10 ------- Run | Yrd Mat Min Sub Robot Analysis Total . | . . . . Derelict Logs Recovered 3 | . . 2 1 Drone Launches . | . . . . Drone Recoveries . | . . . . Exploration | -11 -10 -10 -10 ------------- Run | Yrd Mat Min Sub Turns Passed 2782 | 127 1000 1327 328 Spaces Moved 1539 | 82 499 797 161 Core 23 | 23 . . . Treads 1516 | 59 499 797 161 Legs . | . . . . Wheels . | . . . . Hover . | . . . . Flight . | . . . . Fastest Speed 50 | 50 160 160 160 Average Speed 158 | 129 160 160 160 Slowest Speed 160 | 160 160 160 160 Overloaded Moves . | . . . . Propulsion Burnouts . | . . . . Robots Hopped . | . . . . Cave-ins Triggered . | . . . . Exploration Rate (%) 45 | 4 63 98 17 Regions Visited 3 Branch Regions 2 Pre-discovered Areas 2 | . . . 2 Known Exits Taken . | . . . . Unknown Exits Taken 3 | 1 1 1 . Scrap Searched 2 | . . 2 . Spaces Dug . | . . . . Terrain Destroyed 1 | . . 1 . Melee . | . . . . Projectile 1 | . . 1 . AOE . | . . . . Terrain Rammed . | . . . . Walls Destroyed . | . . . . Machines Disabled . | . . . . Actions | -11 -10 -10 -10 --------- Run | Yrd Mat Min Sub Total 1723 | 101 602 821 199 Wait 30 | . 15 1 14 Move 1536 | 81 498 796 161 Hop . | . . . . Pick Up 28 | 9 13 4 2 Fast Attach . | . . . . Attach 15 | 6 8 . 1 Detach . | . . . . Swap 1 | . . 1 . Drop 8 | 1 5 1 1 Fire 95 | . 62 13 20 Melee . | . . . . Ram . | . . . . Kick . | . . . . Crush 10 | 4 1 5 . Escape Stasis . | . . . . Rewire . | . . . . Trap . | . . . . Miscellaneous . | . . . . Route ------- -11/Scrapyard -10/Materials (discovered 2 exits: [*Mat] / [*Min]) -10/Mines (discovered 3 exits: [*Mat x2] / [*Sub]) -10/Subcaves History --------- Turn | Location | Event 12 | -11/Scrapyard | Discovered new exit (range 16) 128 | -11/Scrapyard | Entered Materials 321 | -10/Materials | Build established: Mutant 579 | -10/Materials | Discovered new exit (range 8) 582 | -10/Materials | Discovered new exit (range 16) 866 | -10/Materials | Core integrity fell below 50% 1128 | -10/Materials | Entered Mines 1349 | -10/Mines | Discovered new exit (range 9) 1409 | -10/Mines | Received a Rocket Launcher from a helpful Derelict 1413 | -10/Mines | Discovered new exit (range 12) 1501 | -10/Mines | A weapon hastily lodged in a ceiling crevice suddenly fell to the ground 1558 | -10/Mines | Core integrity fell below 20% 1770 | -10/Mines | Discovered new exit (range 9) 1820 | -10/Mines | Learned Materials garrison access intel 2455 | -10/Mines | Entered Subcaves 2482 | -10/Subcaves | Learned location of Mines (-8) 2490 | -10/Subcaves | Learned location of Zion (-6) 2490 | -10/Subcaves | Met a Zionite searching for "candidates" 2783 | -10/Subcaves | Destroyed by 54-N8I(R) with Subdweller Machine Gun Last Messages --------------- Acquired 5 matter. 5A-VJW(R) suffers critical hit (Burn). Sub. Optics melted. 5A-VJW(R) destroyed. Subatomizers dissect the Mak. Leg. Acquired Broken Sub. Beam Cannon. Dropped Broken Sub. Beam Cannon. Subatomizers dissect the Mak. Leg. Acquired Mak. Power Source. SX-WCL(O) collects matter. Acquired 14 matter. Subatomizers dissect the Mak. Leg. Subatomizers dissect the Mak. Leg, destroying it. Subatomizers dissect the Sub. Monowheel. P1-73P(R): "OHNO!" P1-73P(R) destroyed. Acquired 3 matter. Particle Gun destroyed. Lgt. Treads destroyed. Map ----- +----------------------------------------------------+ | ??????????????????????????????????????## | | ??????????????????????????????????????## | | ??????????????????????????????????????### ## | | ??????????????????????????????????????### # ## | | ???????????????????????????????????????#### ## | | ???????????????????????????#####???????#### | | ??????????????????????????#######???????### | | ??????????????????????????### ###???###### # | | ?????????????????????????### ########## # | | ?????????????????????????### ###### ## | | ?????????????????????????## ### | | ?????????????????????###? ?### ## ## | | ?????????????????????## ???? ### #### | | ?????????????????????## ## ####### # | | ?????????????????????## ########## | | ?????????????????????## ## #####????### | | ?????????????????????### ? ## #####???????? | | ??????????????###?????????? ?? ### ###?????????? | | ??????????????###???????????? ### ##????? ??? | | ??????????????##""????????###### ###? ??? | | ?????????????? "" ############ ## ###??? | | ??????????????"" ######## ###??? | | ?????????????""" ## ##??? | | ?????????????"!" =%& ##??? | | ????????????"&%%"R ! ##??? | | ????????????"=&|"R @ ####??? | | ?????????????##!### ## ####??? | | ?????????????####### ### ##???? | | ?????????????????### ##### ## #####???? | | ??????????????????## ########### ## ######???? | | ??????????????????######??#################??????? | | ??????????????????#####????????###########???????? | | ?????????????????????????????????????????????????? | | ?????????????????????????????????????????????????? | | ?????????????????????????????????????????????????? | | ?????????????????????????????????????????????????? | | ?????????????????????????????????????????????????? | | ?????????????????????????????????????????????????? | | ?????????????????????????????????????????????????? | | ?????????????????????????????????????????????????? | | ?????????????????????????????????????????????????? | | ?????????????????????????????????????????????????? | | ?????????????????????????????????????????????????? | | ?????????????????????????????????????????????????? | | ?????????????????????????????????????????????????? | | | | | | | | | | | +----------------------------------------------------+ Best States ------------- Heat Dissipation 25 Energy Generation 14 Energy Capacity 250 Matter Stores 300 Matter Capacity 300 Sight Range 16 Terrain Scan Density 10 Evasion (%) 50 Recoil Reduction 2 Item Schematics ----------------- None Robot Schematics ------------------ None Fabricated ------------ Nothing Alien Tech Used ----------------- None Achievements -------------- None Challenges ------------ None Game ------ Seed ScanOpticalExtractor Manual? 0 Play Time 00:09:41 Cumulative 10.8 hours Start 2024.04.27 @ 16:31:42 End 2024.04.27 @ 16:40:00 Sessions 1 Manual Loads 0 Difficulty Rogue Special Mode None Game No. 41 Rogue 41 Adventurer 0 Explorer 0 Win Type - Total 0 Types 0/0/0/0/0/0/0/0/0 Lore% 15 Gallery% 15 Achievement% 14 Wizard Run 0 Options --------- Layout 1 ASCII 0 Keyboard 0 Movement Arrows Keybinds 0 Fullscreen 1 Font 24/Smallcaps Map View 50x35 Zoom Use 0% Tactical HUD 0 Map Filters NONE Filters NONE Steam 1 RUN: 07f78908-bb68-4bbd-81ba-8040016fdd06